[Event "Titled Tuesday Blitz April 11 Late 2023"]
[White "Sztokbant, Bernardo Vainzoff"]
[Black "Rozman, Levy"]
[WhiteFideId "2115956"]
[BlackFideId "2039877"]
[WhiteElo "2222"]
[BlackElo "2376"]
[Result "0-1"]
[Round "05"]
[TimeControl "180+2"]
[Date "2023.04.11"]
[WhiteClock "0:00:05"]
[BlackClock "0:00:06"]

1. e4 {[%clk 0:03:00]}  c6 {[%clk 0:02:58]} 2. d4 {[%clk 0:03:00]}  d5 {[%clk 0:02:58]} 3. e5 {[%clk 0:03:00]}  c5 {[%clk 0:02:58]} 4. dxc5 {[%clk 0:03:00]}  e6 {[%clk 0:02:59]} 5. a3 {[%clk 0:03:00]}  Bxc5 {[%clk 0:02:59]} 6. b4 {[%clk 0:03:01]}  Be7 {[%clk 0:02:58]} 7. Nf3 {[%clk 0:03:01]}  Nd7 {[%clk 0:02:57]} 8. Bb2 {[%clk 0:03:00]}  f6 {[%clk 0:02:56]} 9. Nbd2 {[%clk 0:02:50]}  Nh6 {[%clk 0:02:54]} 10. Bd3 {[%clk 0:02:45]}  Nf7 {[%clk 0:02:53]} 11. exf6 {[%clk 0:02:44]}  Bxf6 {[%clk 0:02:51]} 12. Bxf6 {[%clk 0:02:44]}  Qxf6 {[%clk 0:02:51]} 13. O-O {[%clk 0:02:43]}  O-O {[%clk 0:02:48]} 14. c4 {[%clk 0:02:44]}  Nde5 {[%clk 0:02:39]} 15. Be2 {[%clk 0:02:41]}  Rd8 {[%clk 0:02:24]} 16. cxd5 {[%clk 0:02:36]}  exd5 {[%clk 0:02:24]} 17. Nxe5 {[%clk 0:02:31]}  Nxe5 {[%clk 0:02:19]} 18. Nf3 {[%clk 0:02:32]}  Nc4 {[%clk 0:02:12]} 19. Qd4 {[%clk 0:02:24]}  Be6 {[%clk 0:01:58]} 20. Qxf6 {[%clk 0:02:12]}  gxf6 {[%clk 0:01:58]} 21. Nd4 {[%clk 0:02:10]}  Bf7 {[%clk 0:01:55]} 22. Rfe1 {[%clk 0:02:05]}  a5 {[%clk 0:01:53]} 23. b5 {[%clk 0:02:03]}  Nd6 {[%clk 0:01:44]} 24. Rac1 {[%clk 0:01:57]}  Rac8 {[%clk 0:01:43]} 25. Bg4 {[%clk 0:01:41]}  Rc4 {[%clk 0:01:40]} 26. Rxc4 {[%clk 0:01:37]}  dxc4 {[%clk 0:01:39]} 27. Bf3 {[%clk 0:01:27]}  Re8 {[%clk 0:01:28]} 28. Kf1 {[%clk 0:01:23]}  Re5 {[%clk 0:01:23]} 29. Re3 {[%clk 0:01:03]}  Bg6 {[%clk 0:01:09]} 30. Ke1 {[%clk 0:00:34]}  c3 {[%clk 0:01:00]} 31. Kd1 {[%clk 0:00:24]}  Rc5 {[%clk 0:00:52]} 32. Kc1 {[%clk 0:00:10]}  a4 {[%clk 0:00:37]} 33. b6 {[%clk 0:00:07]}  h5 {[%clk 0:00:28]} 34. Ne6 {[%clk 0:00:03]}  Rc8 {[%clk 0:00:14]} 35. Bd5 {[%clk 0:00:03]}  Kh7 {[%clk 0:00:13]} 36. Nf4 {[%clk 0:00:04]}  Bf5 {[%clk 0:00:10]} 37. Re7+ {[%clk 0:00:04]}  Kh6 {[%clk 0:00:10]} 38. Be6 {[%clk 0:00:02]}  Rc5 {[%clk 0:00:06]} 39. Bxf5 {[%clk 0:00:03]}  Nxf5 {[%clk 0:00:07]} 40. Re6 {[%clk 0:00:02]}  Nd4 {[%clk 0:00:06]} 41. Rxf6+ {[%clk 0:00:02]}  Kg5 {[%clk 0:00:07]} 42. Ne6+ {[%clk 0:00:02]}  Kxf6 {[%clk 0:00:06]} 43. Nxc5 {[%clk 0:00:02]}  Nb3+ {[%clk 0:00:06]} 44. Kc2 {[%clk 0:00:01]}  Nxc5 {[%clk 0:00:06]} 45. Kxc3 {[%clk 0:00:02]}  Ke6 {[%clk 0:00:06]} 46. Kb4 {[%clk 0:00:03]}  Kd5 {[%clk 0:00:06]} 47. Kb5 {[%clk 0:00:03]}  Nd3 {[%clk 0:00:06]} 48. f3 {[%clk 0:00:03]}  Ne1 {[%clk 0:00:06]} 49. Kxa4 {[%clk 0:00:02]}  Nxg2 {[%clk 0:00:04]} 50. Kb5 {[%clk 0:00:03]}  Nh4 {[%clk 0:00:04]} 51. f4 {[%clk 0:00:02]}  Ng6 {[%clk 0:00:03]} 52. f5 {[%clk 0:00:02]}  Nh4 {[%clk 0:00:02]} 53. f6 {[%clk 0:00:02]}  Ke6 {[%clk 0:00:02]} 54. a4 {[%clk 0:00:02]}  Nf5 {[%clk 0:00:03]} 55. a5 {[%clk 0:00:02]}  Nd6+ {[%clk 0:00:03]} 56. Kb4 {[%clk 0:00:02]}  Kxf6 {[%clk 0:00:03]} 57. Kc5 {[%clk 0:00:02]}  Ke6 {[%clk 0:00:03]} 58. a6 {[%clk 0:00:01]}  bxa6 {[%clk 0:00:04]} 59. Kc6 {[%clk 0:00:02]}  a5 {[%clk 0:00:04]} 60. b7 {[%clk 0:00:02]}  Nxb7 {[%clk 0:00:04]} 61. Kb5 {[%clk 0:00:02]}  Nd6+ {[%clk 0:00:05]} 62. Kxa5 {[%clk 0:00:02]}  Kf5 {[%clk 0:00:06]} 63. Kb4 {[%clk 0:00:03]}  Kg4 {[%clk 0:00:06]} 64. Kc5 {[%clk 0:00:04]}  Ne4+ {[%clk 0:00:05]} 65. Kd5 {[%clk 0:00:05]}  Ng5 {[%clk 0:00:05]} 66. Ke5 {[%clk 0:00:05]}  Nf3+ {[%clk 0:00:05]} 67. Ke4 {[%clk 0:00:05]}  Nxh2 {[%clk 0:00:06]} 0-1


[Site "https://www.chess.com"]

[Event "Titled Tuesday Blitz April 11 Late 2023"]
[White "Idani, Pouya"]
[Black "Mazurkiewicz, Michal"]
[WhiteFideId "12510130"]
[BlackFideId "1124943"]
[WhiteElo "2574"]
[BlackElo "2054"]
[Result "1-0"]
[Round "05"]
[TimeControl "180+2"]
[Date "2023.04.11"]
[WhiteClock "0:01:15"]
[BlackClock "0:00:03"]

1. e4 {[%clk 0:03:00]}  d6 {[%clk 0:02:59]} 2. d4 {[%clk 0:03:00]}  Nf6 {[%clk 0:03:00]} 3. Nc3 {[%clk 0:02:57]}  c6 {[%clk 0:02:59]} 4. f4 {[%clk 0:02:55]}  Qb6 {[%clk 0:02:55]} 5. Nf3 {[%clk 0:02:50]}  Bg4 {[%clk 0:02:52]} 6. Be2 {[%clk 0:02:38]}  e6 {[%clk 0:02:49]} 7. e5 {[%clk 0:02:34]}  Nd5 {[%clk 0:02:48]} 8. Ne4 {[%clk 0:02:31]}  dxe5 {[%clk 0:02:48]} 9. fxe5 {[%clk 0:02:24]}  Nd7 {[%clk 0:01:58]} 10. c4 {[%clk 0:02:20]}  Bb4+ {[%clk 0:01:25]} 11. Kf2 {[%clk 0:02:19]}  Ne7 {[%clk 0:01:02]} 12. a3 {[%clk 0:02:06]}  Bxf3 {[%clk 0:00:37]} 13. gxf3 {[%clk 0:01:58]}  Nxe5 {[%clk 0:00:32]} 14. axb4 {[%clk 0:01:57]}  Nf5 {[%clk 0:00:12]} 15. c5 {[%clk 0:01:51]}  Qd8 {[%clk 0:00:12]} 16. dxe5 {[%clk 0:01:40]}  Qh4+ {[%clk 0:00:11]} 17. Kg2 {[%clk 0:01:40]}  O-O {[%clk 0:00:05]} 18. Nd6 {[%clk 0:01:24]}  Rad8 {[%clk 0:00:03]} 19. Bd3 {[%clk 0:01:15]} 1-0


[Site "https://www.chess.com"]

[Event "Titled Tuesday Blitz April 11 Late 2023"]
[White "Girsh, Daniel"]
[Black "Danielyan, Vahe"]
[WhiteFideId "30949190"]
[BlackFideId "13304828"]
[WhiteElo "2075"]
[BlackElo "2423"]
[Result "1-0"]
[Round "05"]
[TimeControl "180+2"]
[Date "2023.04.11"]
[WhiteClock "0:00:14"]
[BlackClock "0:00:01"]

1. e4 {[%clk 0:03:00]}  Nf6 {[%clk 0:02:58]} 2. e5 {[%clk 0:02:57]}  Nd5 {[%clk 0:02:58]} 3. d4 {[%clk 0:02:58]}  d6 {[%clk 0:02:58]} 4. Nf3 {[%clk 0:02:58]}  g6 {[%clk 0:02:57]} 5. Bc4 {[%clk 0:02:57]}  c6 {[%clk 0:02:56]} 6. O-O {[%clk 0:02:56]}  Bg7 {[%clk 0:02:56]} 7. Re1 {[%clk 0:02:55]}  O-O {[%clk 0:02:56]} 8. Nc3 {[%clk 0:02:52]}  Nxc3 {[%clk 0:02:44]} 9. bxc3 {[%clk 0:02:53]}  dxe5 {[%clk 0:02:45]} 10. Nxe5 {[%clk 0:02:51]}  Nd7 {[%clk 0:02:43]} 11. Nf3 {[%clk 0:02:33]}  e5 {[%clk 0:02:19]} 12. Ba3 {[%clk 0:02:32]}  exd4 {[%clk 0:01:44]} 13. Bxf8 {[%clk 0:02:30]}  Qxf8 {[%clk 0:01:45]} 14. cxd4 {[%clk 0:02:30]}  Nb6 {[%clk 0:01:44]} 15. Bb3 {[%clk 0:02:25]}  Bg4 {[%clk 0:01:39]} 16. c3 {[%clk 0:02:24]}  Nd5 {[%clk 0:01:32]} 17. Bxd5 {[%clk 0:02:20]}  cxd5 {[%clk 0:01:33]} 18. h3 {[%clk 0:02:21]}  Be6 {[%clk 0:01:26]} 19. Qb3 {[%clk 0:02:20]}  b6 {[%clk 0:01:26]} 20. Ng5 {[%clk 0:02:19]}  Bf5 {[%clk 0:01:20]} 21. Qxd5 {[%clk 0:02:17]}  Rd8 {[%clk 0:01:21]} 22. Qf3 {[%clk 0:02:15]}  h6 {[%clk 0:00:56]} 23. Ne4 {[%clk 0:02:14]}  Qa3 {[%clk 0:00:56]} 24. Ng3 {[%clk 0:01:50]}  Be6 {[%clk 0:00:50]} 25. Re2 {[%clk 0:01:47]}  Bd5 {[%clk 0:00:45]} 26. Qe3 {[%clk 0:01:44]}  Rc8 {[%clk 0:00:37]} 27. Rc2 {[%clk 0:01:23]}  b5 {[%clk 0:00:35]} 28. Qc1 {[%clk 0:01:14]}  Qa5 {[%clk 0:00:25]} 29. Qb2 {[%clk 0:01:13]}  h5 {[%clk 0:00:21]} 30. Re1 {[%clk 0:01:11]}  h4 {[%clk 0:00:18]} 31. Ne4 {[%clk 0:01:11]}  Qd8 {[%clk 0:00:15]} 32. Qxb5 {[%clk 0:00:59]}  f5 {[%clk 0:00:15]} 33. Nc5 {[%clk 0:00:28]}  Qg5 {[%clk 0:00:14]} 34. f4 {[%clk 0:00:28]}  Qxf4 {[%clk 0:00:15]} 35. Qd7 {[%clk 0:00:28]}  Rxc5 {[%clk 0:00:03]} 36. dxc5 {[%clk 0:00:26]}  Be4 {[%clk 0:00:04]} 37. Qe8+ {[%clk 0:00:25]}  Kh7 {[%clk 0:00:04]} 38. Rf2 {[%clk 0:00:23]}  Qg3 {[%clk 0:00:02]} 39. Rxe4 {[%clk 0:00:20]}  fxe4 {[%clk 0:00:03]} 40. Qxe4 {[%clk 0:00:20]}  Bxc3 {[%clk 0:00:03]} 41. Qf3 {[%clk 0:00:20]}  Bd4 {[%clk 0:00:03]} 42. c6 {[%clk 0:00:19]}  Qd6 {[%clk 0:00:01]} 43. Qf7+ {[%clk 0:00:18]}  Kh6 {[%clk 0:00:01]} 44. c7 {[%clk 0:00:15]}  Qc6 {[%clk 0:00:01]} 45. Qf8+ {[%clk 0:00:14]}  Kh7 {[%clk 0:00:01]} 46. c8=Q {[%clk 0:00:14]} 1-0


[Site "https://www.chess.com"]

[Event "Titled Tuesday Blitz April 11 Late 2023"]
[White "Yeritsyan, Hayk"]
[Black "Kavutskiy, Konstantin"]
[WhiteFideId "13307320"]
[BlackFideId "2026384"]
[WhiteElo "2241"]
[BlackElo "2323"]
[Result "0-1"]
[Round "05"]
[TimeControl "180+2"]
[Date "2023.04.11"]
[WhiteClock "0:00:06"]
[BlackClock "0:00:14"]

1. d4 {[%clk 0:02:19]}  Nf6 {[%clk 0:02:59]} 2. Nf3 {[%clk 0:02:17]}  g6 {[%clk 0:02:59]} 3. Bf4 {[%clk 0:02:17]}  Bg7 {[%clk 0:02:59]} 4. h3 {[%clk 0:02:17]}  O-O {[%clk 0:02:59]} 5. e3 {[%clk 0:02:18]}  d6 {[%clk 0:02:59]} 6. c3 {[%clk 0:02:18]}  Nc6 {[%clk 0:02:57]} 7. Be2 {[%clk 0:02:19]}  Nd7 {[%clk 0:02:56]} 8. O-O {[%clk 0:02:20]}  e5 {[%clk 0:02:55]} 9. Bh2 {[%clk 0:02:20]}  f5 {[%clk 0:02:53]} 10. Na3 {[%clk 0:02:20]}  Kh8 {[%clk 0:02:51]} 11. Nc4 {[%clk 0:02:20]}  Qe7 {[%clk 0:02:40]} 12. b4 {[%clk 0:02:20]}  g5 {[%clk 0:02:35]} 13. b5 {[%clk 0:02:13]}  Nd8 {[%clk 0:02:35]} 14. a4 {[%clk 0:02:13]}  h5 {[%clk 0:02:31]} 15. Nfd2 {[%clk 0:02:12]}  g4 {[%clk 0:02:29]} 16. hxg4 {[%clk 0:02:12]}  hxg4 {[%clk 0:02:30]} 17. dxe5 {[%clk 0:02:04]}  dxe5 {[%clk 0:02:29]} 18. e4 {[%clk 0:02:02]}  Nc5 {[%clk 0:01:55]} 19. exf5 {[%clk 0:01:58]}  Bxf5 {[%clk 0:01:53]} 20. Bxg4 {[%clk 0:01:53]}  Bd3 {[%clk 0:01:51]} 21. Re1 {[%clk 0:01:53]}  e4 {[%clk 0:01:51]} 22. Ne3 {[%clk 0:01:32]}  Bxc3 {[%clk 0:01:44]} 23. Rc1 {[%clk 0:01:24]}  Bd4 {[%clk 0:01:41]} 24. Nb3 {[%clk 0:01:20]}  Nxb3 {[%clk 0:01:36]} 25. Qxb3 {[%clk 0:01:20]}  Qf6 {[%clk 0:01:22]} 26. Bg3 {[%clk 0:01:09]}  Nf7 {[%clk 0:01:22]} 27. Rxc7 {[%clk 0:00:57]}  Nh6 {[%clk 0:01:18]} 28. Qe6 {[%clk 0:00:49]}  Nxg4 {[%clk 0:01:14]} 29. Qxg4 {[%clk 0:00:45]}  Qh6 {[%clk 0:01:05]} 30. Nf5 {[%clk 0:00:37]}  Rxf5 {[%clk 0:00:40]} 31. Qxf5 {[%clk 0:00:34]}  Re8 {[%clk 0:00:40]} 32. Qf7 {[%clk 0:00:26]}  Rg8 {[%clk 0:00:39]} 33. Bf4 {[%clk 0:00:20]}  Qh4 {[%clk 0:00:17]} 34. Qe7 {[%clk 0:00:05]}  Qxf2+ {[%clk 0:00:13]} 35. Kh1 {[%clk 0:00:05]}  Qxe1+ {[%clk 0:00:13]} 36. Kh2 {[%clk 0:00:05]}  Qg1+ {[%clk 0:00:13]} 37. Kh3 {[%clk 0:00:05]}  Qxg2+ {[%clk 0:00:13]} 38. Kh4 {[%clk 0:00:06]}  Qg4# {[%clk 0:00:14]} 0-1


[Site "https://www.chess.com"]

[Event "Titled Tuesday Blitz April 11 Late 2023"]
[White "Tanenbaum, Zachary"]
[Black "Sai Han Thiha"]
[WhiteFideId "2060850"]
[BlackFideId "13012290"]
[WhiteElo "2175"]
[BlackElo "1954"]
[Result "1-0"]
[Round "05"]
[TimeControl "180+2"]
[Date "2023.04.11"]
[WhiteClock "0:00:13"]
[BlackClock "0:00:06"]

1. e4 {[%clk 0:03:00]}  c6 {[%clk 0:03:00]} 2. d4 {[%clk 0:03:00]}  d5 {[%clk 0:03:01]} 3. exd5 {[%clk 0:03:01]}  cxd5 {[%clk 0:03:02]} 4. Bd3 {[%clk 0:03:01]}  Nc6 {[%clk 0:03:02]} 5. c3 {[%clk 0:03:01]}  Nf6 {[%clk 0:03:03]} 6. Bf4 {[%clk 0:03:01]}  Bg4 {[%clk 0:03:03]} 7. Qb3 {[%clk 0:03:01]}  Qd7 {[%clk 0:03:03]} 8. Nd2 {[%clk 0:03:00]}  e6 {[%clk 0:03:04]} 9. Ngf3 {[%clk 0:03:01]}  Bd6 {[%clk 0:03:05]} 10. Bxd6 {[%clk 0:03:00]}  Qxd6 {[%clk 0:03:06]} 11. O-O {[%clk 0:03:00]}  O-O {[%clk 0:03:06]} 12. Rfe1 {[%clk 0:03:01]}  Qc7 {[%clk 0:02:55]} 13. Qc2 {[%clk 0:02:51]}  Rfc8 {[%clk 0:02:39]} 14. Rac1 {[%clk 0:02:49]}  Bh5 {[%clk 0:02:34]} 15. Ne5 {[%clk 0:02:46]}  Rab8 {[%clk 0:02:34]} 16. a4 {[%clk 0:02:45]}  a6 {[%clk 0:02:34]} 17. Nb3 {[%clk 0:02:34]}  Na5 {[%clk 0:02:15]} 18. Nc5 {[%clk 0:02:32]}  Nc6 {[%clk 0:01:50]} 19. f4 {[%clk 0:02:26]}  Ne7 {[%clk 0:01:49]} 20. Qf2 {[%clk 0:02:10]}  Bg6 {[%clk 0:01:41]} 21. Bxg6 {[%clk 0:01:44]}  hxg6 {[%clk 0:01:42]} 22. g4 {[%clk 0:01:18]}  Ra8 {[%clk 0:01:38]} 23. Qh4 {[%clk 0:00:53]}  b6 {[%clk 0:01:31]} 24. Ncd3 {[%clk 0:00:53]}  Ne4 {[%clk 0:01:18]} 25. Re3 {[%clk 0:00:47]}  Kf8 {[%clk 0:00:39]} 26. Qh8+ {[%clk 0:00:36]}  Ng8 {[%clk 0:00:40]} 27. Rh3 {[%clk 0:00:34]}  Qe7 {[%clk 0:00:35]} 28. Rh7 {[%clk 0:00:33]}  Nf6 {[%clk 0:00:20]} 29. Qxg7+ {[%clk 0:00:32]}  Ke8 {[%clk 0:00:21]} 30. Nxg6 {[%clk 0:00:31]}  fxg6 {[%clk 0:00:19]} 31. Qxg6+ {[%clk 0:00:31]}  Kd8 {[%clk 0:00:17]} 32. Rxe7 {[%clk 0:00:31]}  Kxe7 {[%clk 0:00:18]} 33. Ne5 {[%clk 0:00:30]}  Kd6 {[%clk 0:00:16]} 34. Re1 {[%clk 0:00:27]}  Ne4 {[%clk 0:00:16]} 35. f5 {[%clk 0:00:26]}  Ngf6 {[%clk 0:00:16]} 36. Rxe4 {[%clk 0:00:16]}  dxe4 {[%clk 0:00:03]} 37. Qxf6 {[%clk 0:00:16]}  Re8 {[%clk 0:00:04]} 38. Nc4+ {[%clk 0:00:14]}  Kd5 {[%clk 0:00:04]} 39. Nxb6+ {[%clk 0:00:14]}  Kc6 {[%clk 0:00:05]} 40. Nxa8 {[%clk 0:00:14]}  Kb7 {[%clk 0:00:06]} 41. Qf7+ {[%clk 0:00:13]} 1-0


[Site "https://www.chess.com"]

[Event "Titled Tuesday Blitz April 11 Late 2023"]
[White "Pasti, Aron"]
[Black "Bilych, Olexiy"]
[WhiteFideId "785857"]
[BlackFideId "14156504"]
[WhiteElo "2173"]
[BlackElo "2320"]
[Result "0-1"]
[Round "05"]
[TimeControl "180+2"]
[Date "2023.04.11"]
[WhiteClock "0:00:57"]
[BlackClock "0:01:31"]

1. e4 {[%clk 0:02:41]}  d5 {[%clk 0:02:59]} 2. exd5 {[%clk 0:02:41]}  Qxd5 {[%clk 0:03:00]} 3. Nc3 {[%clk 0:02:41]}  Qe5+ {[%clk 0:03:00]} 4. Be2 {[%clk 0:02:40]}  Bg4 {[%clk 0:03:00]} 5. d4 {[%clk 0:02:38]}  Bxe2 {[%clk 0:03:01]} 6. Ngxe2 {[%clk 0:02:38]}  Qa5 {[%clk 0:03:02]} 7. O-O {[%clk 0:02:38]}  Nf6 {[%clk 0:03:02]} 8. Bf4 {[%clk 0:02:36]}  e6 {[%clk 0:02:59]} 9. Qd3 {[%clk 0:02:27]}  Nc6 {[%clk 0:02:57]} 10. Nb5 {[%clk 0:02:22]}  Nd5 {[%clk 0:02:55]} 11. Bg3 {[%clk 0:02:22]}  a6 {[%clk 0:02:43]} 12. Nbc3 {[%clk 0:02:10]}  O-O-O {[%clk 0:02:41]} 13. Nxd5 {[%clk 0:02:11]}  Qxd5 {[%clk 0:02:41]} 14. c4 {[%clk 0:02:11]}  Qh5 {[%clk 0:02:29]} 15. Rfd1 {[%clk 0:02:11]}  Bd6 {[%clk 0:02:14]} 16. d5 {[%clk 0:01:50]}  Bxg3 {[%clk 0:01:51]} 17. hxg3 {[%clk 0:01:43]}  exd5 {[%clk 0:01:42]} 18. Nf4 {[%clk 0:01:42]}  Qe5 {[%clk 0:01:38]} 19. cxd5 {[%clk 0:01:14]}  g5 {[%clk 0:01:37]} 20. Qe2 {[%clk 0:01:05]}  gxf4 {[%clk 0:01:31]} 21. Qg4+ {[%clk 0:00:59]}  f5 {[%clk 0:01:31]} 22. Qxf4 {[%clk 0:00:56]}  Qxf4 {[%clk 0:01:31]} 23. gxf4 {[%clk 0:00:57]} 0-1


[Site "https://www.chess.com"]

[Event "Titled Tuesday Blitz April 11 Late 2023"]
[White "Vovk, Orest"]
[Black "Domingo Nunez, Ruben"]
[WhiteFideId "14113490"]
[BlackFideId "22245570"]
[WhiteElo "2215"]
[BlackElo "2404"]
[Result "0-1"]
[Round "05"]
[TimeControl "180+2"]
[Date "2023.04.11"]
[WhiteClock "0:00:04"]
[BlackClock "0:00:50"]

1. h4 {[%clk 0:02:53]}  g6 {[%clk 0:03:00]} 2. h5 {[%clk 0:02:53]}  d5 {[%clk 0:03:01]} 3. hxg6 {[%clk 0:02:52]}  fxg6 {[%clk 0:03:01]} 4. e4 {[%clk 0:02:50]}  dxe4 {[%clk 0:03:02]} 5. Nc3 {[%clk 0:02:49]}  Nf6 {[%clk 0:03:00]} 6. d3 {[%clk 0:02:44]}  Bg4 {[%clk 0:02:59]} 7. Be2 {[%clk 0:02:42]}  Bxe2 {[%clk 0:02:59]} 8. Ngxe2 {[%clk 0:02:40]}  exd3 {[%clk 0:03:00]} 9. cxd3 {[%clk 0:02:39]}  Nc6 {[%clk 0:02:59]} 10. Be3 {[%clk 0:02:33]}  Qd7 {[%clk 0:02:57]} 11. Qb3 {[%clk 0:02:32]}  b6 {[%clk 0:02:34]} 12. O-O-O {[%clk 0:02:31]}  Bg7 {[%clk 0:02:34]} 13. Nf4 {[%clk 0:02:26]}  Ng4 {[%clk 0:02:34]} 14. Ne6 {[%clk 0:02:17]}  Bxc3 {[%clk 0:02:23]} 15. Qxc3 {[%clk 0:02:07]}  Nf6 {[%clk 0:02:22]} 16. d4 {[%clk 0:01:34]}  Nd5 {[%clk 0:02:09]} 17. Ng7+ {[%clk 0:01:03]}  Kf7 {[%clk 0:02:09]} 18. Qb3 {[%clk 0:00:48]}  Kxg7 {[%clk 0:02:05]} 19. Bh6+ {[%clk 0:00:47]}  Kf7 {[%clk 0:02:05]} 20. Rh3 {[%clk 0:00:30]}  Rag8 {[%clk 0:01:31]} 21. Rf3+ {[%clk 0:00:19]}  Ke8 {[%clk 0:01:31]} 22. Kb1 {[%clk 0:00:19]}  Kd8 {[%clk 0:01:29]} 23. Rc1 {[%clk 0:00:16]}  Kc8 {[%clk 0:01:27]} 24. Qb5 {[%clk 0:00:14]}  Kb7 {[%clk 0:01:27]} 25. Ra3 {[%clk 0:00:12]}  a5 {[%clk 0:01:24]} 26. Rxa5 {[%clk 0:00:10]}  Qf5+ {[%clk 0:00:59]} 27. Ka1 {[%clk 0:00:10]}  Nxa5 {[%clk 0:00:59]} 28. g4 {[%clk 0:00:05]}  Qe6 {[%clk 0:00:52]} 29. Bd2 {[%clk 0:00:04]}  Ra8 {[%clk 0:00:50]} 0-1


[Site "https://www.chess.com"]

[Event "Titled Tuesday Blitz April 11 Late 2023"]
[White "Gil Alba, Hector Luis"]
[Black "Mamedov, Edgar"]
[WhiteFideId "3504670"]
[BlackFideId "13739980"]
[WhiteElo "2331"]
[BlackElo "2330"]
[Result "0-1"]
[Round "05"]
[TimeControl "180+2"]
[Date "2023.04.11"]
[WhiteClock "0:00:33"]
[BlackClock "0:00:19"]

1. e4 {[%clk 0:03:00]}  Nc6 {[%clk 0:02:55]} 2. d4 {[%clk 0:03:00]}  d5 {[%clk 0:02:54]} 3. Nc3 {[%clk 0:02:59]}  e6 {[%clk 0:02:54]} 4. Nf3 {[%clk 0:02:58]}  Nf6 {[%clk 0:02:54]} 5. e5 {[%clk 0:02:57]}  Nd7 {[%clk 0:02:53]} 6. Ne2 {[%clk 0:02:54]}  f6 {[%clk 0:02:48]} 7. exf6 {[%clk 0:02:48]}  Qxf6 {[%clk 0:02:47]} 8. c3 {[%clk 0:02:47]}  Bd6 {[%clk 0:02:47]} 9. Bg5 {[%clk 0:02:41]}  Qf7 {[%clk 0:02:46]} 10. Ng3 {[%clk 0:02:38]}  O-O {[%clk 0:02:45]} 11. Bb5 {[%clk 0:02:36]}  e5 {[%clk 0:02:41]} 12. O-O {[%clk 0:02:34]}  e4 {[%clk 0:02:36]} 13. Nd2 {[%clk 0:02:32]}  Nf6 {[%clk 0:02:16]} 14. f3 {[%clk 0:02:01]}  exf3 {[%clk 0:02:14]} 15. Qxf3 {[%clk 0:01:52]}  Ne7 {[%clk 0:02:08]} 16. Bxf6 {[%clk 0:01:48]}  Qxf6 {[%clk 0:02:04]} 17. Qxf6 {[%clk 0:01:46]}  gxf6 {[%clk 0:01:59]} 18. Nh5 {[%clk 0:01:45]}  f5 {[%clk 0:01:54]} 19. Nf4 {[%clk 0:01:44]}  c6 {[%clk 0:01:52]} 20. Bd3 {[%clk 0:01:43]}  Ng6 {[%clk 0:01:51]} 21. Nxg6 {[%clk 0:01:40]}  hxg6 {[%clk 0:01:46]} 22. Rae1 {[%clk 0:01:40]}  Bd7 {[%clk 0:01:46]} 23. Nf3 {[%clk 0:01:38]}  Kg7 {[%clk 0:01:43]} 24. Ne5 {[%clk 0:01:36]}  Be8 {[%clk 0:01:41]} 25. g4 {[%clk 0:01:29]}  f4 {[%clk 0:01:40]} 26. g5 {[%clk 0:01:27]}  c5 {[%clk 0:01:35]} 27. Ng4 {[%clk 0:01:24]}  cxd4 {[%clk 0:01:29]} 28. cxd4 {[%clk 0:01:23]}  Bd7 {[%clk 0:01:11]} 29. Nf6 {[%clk 0:01:22]}  Rxf6 {[%clk 0:01:10]} 30. gxf6+ {[%clk 0:01:21]}  Kxf6 {[%clk 0:01:10]} 31. a3 {[%clk 0:01:18]}  g5 {[%clk 0:01:08]} 32. Rf2 {[%clk 0:00:57]}  Rh8 {[%clk 0:01:05]} 33. Rfe2 {[%clk 0:00:56]}  f3 {[%clk 0:00:52]} 34. Re5 {[%clk 0:00:55]}  Bxe5 {[%clk 0:00:49]} 35. Rxe5 {[%clk 0:00:55]}  Be6 {[%clk 0:00:47]} 36. b4 {[%clk 0:00:53]}  Rh4 {[%clk 0:00:46]} 37. Re3 {[%clk 0:00:49]}  Rf4 {[%clk 0:00:39]} 38. Kf2 {[%clk 0:00:48]}  g4 {[%clk 0:00:39]} 39. Kg3 {[%clk 0:00:44]}  Rxd4 {[%clk 0:00:39]} 40. h3 {[%clk 0:00:45]}  gxh3 {[%clk 0:00:33]} 41. Rxf3+ {[%clk 0:00:43]}  Ke5 {[%clk 0:00:30]} 42. Re3+ {[%clk 0:00:43]}  Kd6 {[%clk 0:00:30]} 43. Bf1 {[%clk 0:00:41]}  Re4 {[%clk 0:00:23]} 44. Rxe4 {[%clk 0:00:38]}  dxe4 {[%clk 0:00:23]} 45. Kf4 {[%clk 0:00:38]}  Kd5 {[%clk 0:00:21]} 46. Ke3 {[%clk 0:00:38]}  Ke5 {[%clk 0:00:21]} 47. a4 {[%clk 0:00:36]}  Bg4 {[%clk 0:00:20]} 48. Kf2 {[%clk 0:00:33]}  Kf4 {[%clk 0:00:20]} 49. Kg1 {[%clk 0:00:32]}  e3 {[%clk 0:00:19]} 50. Kh2 {[%clk 0:00:32]}  e2 {[%clk 0:00:19]} 51. Bxe2 {[%clk 0:00:32]}  Bxe2 {[%clk 0:00:20]} 52. Kxh3 {[%clk 0:00:33]}  Ke4 {[%clk 0:00:21]} 53. Kg3 {[%clk 0:00:33]}  Kd4 {[%clk 0:00:21]} 54. Kf2 {[%clk 0:00:33]}  Bd1 {[%clk 0:00:19]} 0-1


[Site "https://www.chess.com"]

[Event "Titled Tuesday Blitz April 11 Late 2023"]
[White "Jonkman, Harmen"]
[Black "Mendez Fortes, Eduardo Jesus"]
[WhiteFideId "1002708"]
[BlackFideId "3502376"]
[WhiteElo "2368"]
[BlackElo "2307"]
[Result "1-0"]
[Round "05"]
[TimeControl "180+2"]
[Date "2023.04.11"]
[WhiteClock "0:00:44"]
[BlackClock "0:00:13"]

1. e4 {[%clk 0:02:57]}  c5 {[%clk 0:02:59]} 2. Nf3 {[%clk 0:02:56]}  d6 {[%clk 0:02:58]} 3. Bb5+ {[%clk 0:02:54]}  Nd7 {[%clk 0:02:57]} 4. O-O {[%clk 0:02:53]}  Nf6 {[%clk 0:02:57]} 5. Re1 {[%clk 0:02:53]}  a6 {[%clk 0:02:55]} 6. Bf1 {[%clk 0:02:48]}  g6 {[%clk 0:02:55]} 7. a4 {[%clk 0:02:46]}  Bg7 {[%clk 0:02:55]} 8. c3 {[%clk 0:02:46]}  O-O {[%clk 0:02:55]} 9. d4 {[%clk 0:02:46]}  e5 {[%clk 0:02:49]} 10. d5 {[%clk 0:02:38]}  h6 {[%clk 0:02:45]} 11. Nfd2 {[%clk 0:02:31]}  Rb8 {[%clk 0:02:43]} 12. Nc4 {[%clk 0:02:31]}  Qc7 {[%clk 0:02:35]} 13. a5 {[%clk 0:02:30]}  b5 {[%clk 0:02:28]} 14. axb6 {[%clk 0:02:29]}  Nxb6 {[%clk 0:02:28]} 15. Na5 {[%clk 0:02:27]}  Ra8 {[%clk 0:02:24]} 16. f3 {[%clk 0:02:19]}  Nh5 {[%clk 0:02:19]} 17. Be3 {[%clk 0:02:19]}  f5 {[%clk 0:02:16]} 18. Nd2 {[%clk 0:02:18]}  f4 {[%clk 0:01:59]} 19. Bf2 {[%clk 0:02:17]}  g5 {[%clk 0:01:58]} 20. b4 {[%clk 0:02:10]}  cxb4 {[%clk 0:01:52]} 21. cxb4 {[%clk 0:02:10]}  Rb8 {[%clk 0:01:31]} 22. Nc6 {[%clk 0:02:00]}  Bd7 {[%clk 0:00:52]} 23. Bxa6 {[%clk 0:01:48]}  Nf6 {[%clk 0:00:41]} 24. Rc1 {[%clk 0:01:33]}  Kh7 {[%clk 0:00:34]} 25. Nxe5 {[%clk 0:01:27]}  Qa7 {[%clk 0:00:31]} 26. Nxd7 {[%clk 0:01:22]}  Nfxd7 {[%clk 0:00:32]} 27. Bb5 {[%clk 0:01:15]}  Ne5 {[%clk 0:00:31]} 28. Nb3 {[%clk 0:01:10]}  Qa3 {[%clk 0:00:23]} 29. Nd4 {[%clk 0:00:59]}  Rfc8 {[%clk 0:00:14]} 30. Nc6 {[%clk 0:00:51]}  Ra8 {[%clk 0:00:14]} 31. Bxb6 {[%clk 0:00:45]}  Qxb4 {[%clk 0:00:13]} 32. Nxb4 {[%clk 0:00:44]} 1-0


[Site "https://www.chess.com"]